[Event "17th Memorial Lezcano Montalvo 2025"]
[Site "Gran Canaria"]
[Date "2025.04.18"]
[Round "7.16"]
[White "Sanchez Gonzalez, Diego"]
[Black "Dubkov, Andrej"]
[Result "1/2-1/2"]
[Annotator "ChessBase"]
[ECO "B12"]
[WhiteElo "2025"]
[BlackElo "2307"]
[PlyCount "42"]
[EventDate "2025.04.13"]
[EventType "swiss"]
[EventCountry "ESP"]
[SourceTitle "playchess.com"]
[Source "ChessBase"]
[SourceQuality "1"]
[TimeControl "5400+30"]

1. e4 {[%emt 0:00:03]} c6 {[%emt 0:02:29]} 2. d4 {[%emt 0:00:23]} d5 {[%emt 0:00:05]} 3. e5 {[%emt 0:00:08]} a6 {[%emt 0:00:05]} 4. c4 {[%emt 0:00:29]} e6 {[%emt 0:00:07]} 5. Nc3 {[%emt 0:00:17]} c5 {[%emt 0:00:15]} 6. cxd5 {[%emt 0:08:33]} cxd4 {[%emt 0:01:18]} 7. Qxd4 {[%emt 0:00:25]} Nc6 {[%emt 0:00:12]} 8. Qa4 {[%emt 0:04:08]} exd5 {[%emt 0:00:08]} 9. Nf3 {[%emt 0:00:07]} Bb4 {[%emt 0:11:13]} 10. Bd2 {[%emt 0:03:11]} Nge7 {[%emt 0:00:38]} 11. Bd3 {[%emt 0:00:33]} O-O {[%emt 0:02:55]} 12. a3 {[%emt 0:01:20]} Bc5 {[%emt 0:00:30]} 13. O-O {[%emt 0:04:29]} h6 {[%emt 0:12:48]} 14. Rad1 {[%emt 0:01:40]} Ng6 {[%emt 0:13:24]} 15. Rfe1 {[%emt 0:01:37]} Re8 {[%emt 0:00:47]} 16. Bxg6 {[%emt 0:00:45]} fxg6 {[%emt 0:00:07]} 17. Bf4 {[%emt 0:00:23]} Be6 {[%emt 0:06:22]} 18. Qc2 {[%emt 0:04:43]} Bf5 {[%emt 0:00:28]} 19. Qb3 {[%emt 0:01:12]} Be6 {[%emt 0:08:09]} 20. Qc2 {[%emt 0:10:33]} Bf5 {[%emt 0:00:06]} 21. Qb3 {[%emt 0:00:17]} Be6 {[%emt 0:00:05]} 1/2-1/2

[Event "17th Memorial Lezcano Montalvo 2025"]
[Site "Gran Canaria"]
[Date "2025.04.18"]
[Round "7.17"]
[White "Meneses Gonzalez, Kevin Moises"]
[Black "Sosa Suarez, Carla Cristina"]
[Result "1/2-1/2"]
[Annotator "RC"]
[ECO "A13"]
[WhiteElo "2307"]
[BlackElo "2056"]
[PlyCount "120"]
[EventDate "2025.04.13"]
[EventType "swiss"]
[EventCountry "ESP"]
[SourceTitle "playchess.com"]
[Source "ChessBase"]
[SourceQuality "1"]
[TimeControl "5400+30"]

1. Nf3 {[%emt 0:00:03]} d5 {[%emt 0:00:04]} 2. g3 {[%emt 0:00:12]} Nf6 {[%emt 0:00:04]} 3. Bg2 {[%emt 0:00:03]} c5 {[%emt 0:00:03]} 4. O-O {[%emt 0:00:19]} e6 {[%emt 0:00:07]} 5. c4 {[%emt 0:00:08]} d4 {[%emt 0:00:55]} 6. b4 {[%emt 0:00:53]} cxb4 {[%emt 0:01:47]} 7. a3 {[%emt 0:00:03]} b3 {[%emt 0:03:59]} 8. d3 {[%emt 0:01:38]} Nc6 {[%emt 0:00:34]} 9. Qxb3 {[%emt 0:02:49]} Be7 {[%emt 0:04:10]} 10. e3 {[%emt 0:07:37]} e5 {[%emt 0:03:09]} 11. exd4 {[%emt 0:00:51]} exd4 {[%emt 0:00:04]} 12. Bg5 {[%emt 0:01:35]} O-O {[%emt 0:02:07]} 13. Nbd2 {[%emt 0:00:33]} h6 {[%emt 0:05:15]} 14. Bxf6 {[%emt 0:00:43]} Bxf6 {[%emt 0:00:01]} 15. Rfe1 {[%emt 0:00:51]} Rb8 {[%emt 0:01:34]} 16. Ne4 {[%emt 0:06:00]} Be7 {[%emt 0:01:09]} 17. Qb5 {[%emt 0:03:44]} a6 {[%emt 0:04:10]} 18. Qh5 {[%emt 0:07:06]} Qa5 {[%emt 0:10:50]} 19. c5 {[%emt 0:11:19]} Be6 {[%emt 0:05:26]} 20. g4 {[%emt 0:09:59]} Bxg4 {[%emt 0:18:05]} 21. Qxg4 {[%emt 0:01:39]} f5 {[%emt 0:00:01]} 22. Qg6 {[%emt 0:24:45]} fxe4 {[%emt 0:00:05]} 23. Qxe4 {[%emt 0:00:58]} Qxc5 {[%emt 0:08:32]} 24. Rac1 {[%emt 0:08:33]} Qf5 {[%emt 0:04:32]} 25. Qxf5 {[%emt 0:01:04]} Rxf5 {[%emt 0:00:02]} 26. Rxc6 {[%emt 0:00:06]} bxc6 {[%emt 0:00:02]} 27. Nxd4 {[%emt 0:03:38]} Rxf2 {[%emt 0:12:44]} 28. Rxe7 {[%emt 0:01:38]} Rd2 {[%emt 0:02:04]} 29. Bf1 {[%emt 0:06:13]} Rb1 {[%emt 0:03:57]} 30. Re8+ {[%emt 0:00:00]} Kf7 {[%emt 0:00:27]} 31. Re3 {[%emt 0:00:00]} c5 {[%emt 0:01:22]} 32. Rf3+ {[%emt 0:00:00]} Kg8 {[%emt 0:03:09]} 33. Ne6 {[%emt 0:00:00]} Rc1 {[%emt 0:01:11]} 34. h4 {[%emt 0:00:00]} g5 {[%emt 0:02:04]} 35. h5 {[%emt 0:01:20]} Ra2 {[%emt 0:02:11]} 36. Rf8+ {[%emt 0:00:12]} Kh7 {[%emt 0:00:06]} 37. Rf7+ {[%emt 0:00:01]} Kg8 {[%emt 0:00:55]} 38. Rg7+ {[%emt 0:01:04]} Kh8 {[%emt 0:00:00]} 39. Rg6 {[%emt 0:00:06]} Rxa3 {[%emt 0:01:19]} 40. Rxh6+ {[%emt 0:00:04]} Kg8 {[%emt 0:00:02]} 41. Rg6+ {[%emt 0:00:09]} Kh8 {[%emt 0:00:46]} 42. Rh6+ {[%emt 0:02:44]} Kg8 {[%emt 0:00:04]} 43. Rg6+ {[%emt 0:00:10]} Kh8 {[%emt 0:00:04]} 44. Nxg5 {[%emt 0:01:05]} Rxd3 {[%emt 0:00:52]} 45. Kf2 {[%emt 0:00:21]} Rc2+ {[%emt 0:01:25]} 46. Be2 {[%emt 0:00:21]} Rdd2 {[%emt 0:00:17]} 47. Nf7+ {[%emt 0:00:37]} Kh7 {[%emt 0:00:02]} 48. Ng5+ {[%emt 0:00:02]} Kh8 {[%emt 0:00:04]} 49. Re6 {[%emt 0:00:10]} a5 {[%emt 0:01:16]} 50. h6 {[%emt 0:00:25]} Rxe2+ {[%emt 0:01:41]} 51. Rxe2 {[%emt 0:00:03]} Rxe2+ {[%emt 0:00:08]} 52. Kxe2 {[%emt 0:00:01]} c4 {[%emt 0:00:14]} 53. Ke3 {[%emt 0:01:02]} a4 {[%emt 0:00:26]} 54. Kd4 {[%emt 0:01:56]} a3 {[%emt 0:00:04]} 55. Kc3 {[%emt 0:00:07]} Kg8 {[%emt 0:00:12]} 56. Kc2 {[%emt 0:00:34]} Kh8 {[%emt 0:00:10]} 57. Kc3 {[%emt 0:00:45]} Kg8 {[%emt 0:00:05]} 58. Kc2 {[%emt 0:00:28]} Kh8 {[%emt 0:00:03]} 59. Kc3 {[%emt 0:00:38]} Kg8 {[%emt 0:00:08]} 60. Kc2 {[%emt 0:00:31]} Kh8 {[%emt 0:00:01]} 1/2-1/2

[Event "17th Memorial Lezcano Montalvo 2025"]
[Site "Gran Canaria"]
[Date "2025.04.18"]
[Round "7.18"]
[White "Bolivar Castro, Alejandro"]
[Black "Hernando Rodrigo, Jose Maria"]
[Result "1-0"]
[Annotator "RC"]
[ECO "D00"]
[WhiteElo "2006"]
[BlackElo "2256"]
[PlyCount "118"]
[EventDate "2025.04.13"]
[EventType "swiss"]
[EventCountry "ESP"]
[SourceTitle "playchess.com"]
[Source "ChessBase"]
[SourceQuality "1"]
[TimeControl "5400+30"]

1. d4 {[%emt 0:00:03]} d5 {[%emt 0:01:06]} 2. Bf4 {[%emt 0:00:07]} Bf5 {[%emt 0:00:32]} 3. e3 {[%emt 0:00:08]} Nf6 {[%emt 0:02:36]} 4. c4 {[%emt 0:00:08]} e6 {[%emt 0:00:44]} 5. Qb3 {[%emt 0:00:25]} Nc6 {[%emt 0:04:31]} 6. Qa4 {[%emt 0:08:42]} Bxb1 {[%emt 0:02:01]} 7. Rxb1 {[%emt 0:00:21]} Bb4+ {[%emt 0:00:05]} 8. Kd1 {[%emt 0:00:18]} dxc4 {[%emt 0:07:43]} 9. Bxc4 {[%emt 0:03:34]} a6 {[%emt 0:10:48]} 10. Bd3 {[%emt 0:20:41]} Nd5 {[%emt 0:14:28]} 11. Bg3 {[%emt 0:06:15]} O-O {[%emt 0:00:09]} 12. Nf3 {[%emt 0:00:29]} f5 {[%emt 0:01:59]} 13. Qc2 {[%emt 0:13:41]} Be7 {[%emt 0:00:34]} 14. a3 {[%emt 0:00:36]} h6 {[%emt 0:04:45]} 15. Be5 {[%emt 0:04:28]} Bf6 {[%emt 0:07:13]} 16. Ke2 {[%emt 0:01:57]} Bxe5 {[%emt 0:00:32]} 17. Nxe5 {[%emt 0:01:33]} Nxe5 {[%emt 0:00:22]} 18. dxe5 {[%emt 0:00:05]} Qh4 {[%emt 0:00:26]} 19. Qc4 {[%emt 0:08:28]} f4 {[%emt 0:06:14]} 20. Qe4 {[%emt 0:05:01]} Rf5 {[%emt 0:01:18]} 21. g3 {[%emt 0:03:36]} Qh5+ {[%emt 0:04:29]} 22. Qf3 {[%emt 0:00:45]} Rxe5 {[%emt 0:02:36]} 23. Qxh5 {[%emt 0:00:39]} Rxh5 {[%emt 0:00:05]} 24. gxf4 {[%emt 0:01:22]} Kf7 {[%emt 0:04:55]} 25. h4 {[%emt 0:01:00]} Rd8 {[%emt 0:00:32]} 26. Rbg1 {[%emt 0:00:21]} Ne7 {[%emt 0:00:09]} 27. Be4 {[%emt 0:01:12]} c6 {[%emt 0:02:58]} 28. Rg4 {[%emt 0:02:36]} Rb5 {[%emt 0:05:54]} 29. b4 {[%emt 0:00:10]} Nf5 {[%emt 0:01:55]} 30. Rhg1 {[%emt 0:00:43]} Rg8 {[%emt 0:00:12]} 31. Bd3 {[%emt 0:01:21]} Rd5 {[%emt 0:01:15]} 32. e4 {[%emt 0:00:34]} Nd4+ {[%emt 0:00:04]} 33. Ke3 {[%emt 0:00:37]} Rd7 {[%emt 0:00:10]} 34. h5 {[%emt 0:01:37]} Rd6 {[%emt 0:08:30]} 35. Rg6 {[%emt 0:00:33]} Rd7 {[%emt 0:02:29]} 36. f5 {[%emt 0:01:36]} exf5 {[%emt 0:01:09]} 37. Bc4+ {[%emt 0:00:16]} Kf8 {[%emt 0:00:00]} 38. Bxg8 {[%emt 0:01:51]} Kxg8 {[%emt 0:00:02]} 39. e5 {[%emt 0:00:49]} Nc2+ {[%emt 0:02:10]} 40. Kf4 {[%emt 0:01:35]} Nxa3 {[%emt 0:00:34]} 41. Rd6 {[%emt 0:00:29]} Re7 {[%emt 0:00:25]} 42. e6 {[%emt 0:10:48]} Nc2 {[%emt 0:01:27]} 43. Kxf5 {[%emt 0:00:00]} Nxb4 {[%emt 0:00:03]} 44. Rd8+ {[%emt 0:00:00]} Kh7 {[%emt 0:00:03]} 45. Rgd1 {[%emt 0:00:00]} Nd5 {[%emt 0:00:29]} 46. R1xd5 {[%emt 0:00:00]} cxd5 {[%emt 0:00:01]} 47. Rd7 {[%emt 0:00:00]} Re8 {[%emt 0:00:03]} 48. e7 {[%emt 0:00:00]} g6+ {[%emt 0:02:17]} 49. hxg6+ {[%emt 0:00:00]} Kg7 {[%emt 0:00:00]} 50. Ke6 {[%emt 0:00:00]} d4 {[%emt 0:00:03]} 51. Rxb7 {[%emt 0:00:00]} h5 {[%emt 0:00:56]} 52. Rd7 {[%emt 0:00:00]} Kxg6 {[%emt 0:00:35]} 53. f4 {[%emt 0:00:32]} h4 {[%emt 0:00:36]} 54. f5+ {[%emt 0:00:18]} Kg5 {[%emt 0:00:01]} 55. f6 {[%emt 0:00:25]} h3 {[%emt 0:00:52]} 56. Rxd4 {[%emt 0:00:09]} Rb8 {[%emt 0:00:52]} 57. Kf7 {[%emt 0:01:26]} a5 {[%emt 0:01:03]} 58. Rd5+ {[%emt 0:00:05]} Kf4 {[%emt 0:00:12]} 59. Rxa5 {[%emt 0:00:44]} Ke4 {[%emt 0:01:48]} 1-0

[Event "17th Memorial Lezcano Montalvo 2025"]
[Site "Gran Canaria"]
[Date "2025.04.18"]
[Round "7.19"]
[White "Moreno Diepa, Diego"]
[Black "Roquero Redondo, Miguel"]
[Result "1/2-1/2"]
[Annotator "ChessBase"]
[ECO "B95"]
[WhiteElo "2243"]
[BlackElo "2037"]
[PlyCount "71"]
[EventDate "2025.04.13"]
[EventType "swiss"]
[EventCountry "ESP"]
[SourceTitle "playchess.com"]
[Source "ChessBase"]
[SourceQuality "1"]
[TimeControl "5400+30"]

1. e4 {[%emt 0:00:04]} c5 {[%emt 0:00:29]} 2. Nf3 {[%emt 0:00:07]} d6 {[%emt 0:00:18]} 3. d4 {[%emt 0:00:07]} cxd4 {[%emt 0:00:06]} 4. Nxd4 {[%emt 0:00:04]} Nf6 {[%emt 0:00:13]} 5. Nc3 {[%emt 0:00:04]} e6 {[%emt 0:01:19]} 6. Bg5 {[%emt 0:01:25]} Be7 {[%emt 0:00:53]} 7. Qd2 {[%emt 0:00:28]} a6 {[%emt 0:03:24]} 8. O-O-O {[%emt 0:00:31]} h6 {[%emt 0:03:15]} 9. Bxf6 {[%emt 0:01:28]} Bxf6 {[%emt 0:00:54]} 10. f4 {[%emt 0:02:17]} O-O {[%emt 0:08:15]} 11. g3 {[%emt 0:04:48]} b5 {[%emt 0:06:41]} 12. Bg2 {[%emt 0:00:08]} Ra7 {[%emt 0:00:32]} 13. Kb1 {[%emt 0:04:08]} Qb6 {[%emt 0:03:09]} 14. Rhe1 {[%emt 0:03:39]} Rc7 {[%emt 0:05:33]} 15. Nce2 {[%emt 0:02:27]} Bb7 {[%emt 0:01:42]} 16. Nb3 {[%emt 0:08:17]} Be7 {[%emt 0:04:54]} 17. Ned4 {[%emt 0:00:40]} Nd7 {[%emt 0:04:27]} 18. e5 {[%emt 0:06:37]} dxe5 {[%emt 0:02:05]} 19. fxe5 {[%emt 0:00:08]} Bxg2 {[%emt 0:00:59]} 20. Qxg2 {[%emt 0:00:04]} Nc5 {[%emt 0:01:35]} 21. Nxc5 {[%emt 0:03:27]} Bxc5 {[%emt 0:01:17]} 22. Nb3 {[%emt 0:00:09]} Rfc8 {[%emt 0:01:02]} 23. Re2 {[%emt 0:05:21]} Bf8 {[%emt 0:03:47]} 24. Qf2 {[%emt 0:05:54]} Qxf2 {[%emt 0:02:47]} 25. Rxf2 {[%emt 0:00:16]} g6 {[%emt 0:03:08]} 26. Re2 {[%emt 0:02:14]} Be7 {[%emt 0:03:51]} 27. Nc1 {[%emt 0:02:49]} Rd8 {[%emt 0:01:37]} 28. Rxd8+ {[%emt 0:01:10]} Bxd8 {[%emt 0:00:06]} 29. Nd3 {[%emt 0:00:02]} Be7 {[%emt 0:00:09]} 30. c3 {[%emt 0:01:27]} h5 {[%emt 0:02:14]} 31. Kc2 {[%emt 0:02:03]} Kf8 {[%emt 0:01:50]} 32. b3 {[%emt 0:09:23]} Ke8 {[%emt 0:00:27]} 33. Re4 {[%emt 0:00:16]} Kd8 {[%emt 0:00:57]} 34. c4 {[%emt 0:07:32]} b4 {[%emt 0:04:51]} 35. Rd4+ {[%emt 0:02:23]} Rd7 {[%emt 0:01:10]} 36. Rxd7+ {[%emt 0:05:11]} 1/2-1/2

[Event "17th Memorial Lezcano Montalvo 2025"]
[Site "Gran Canaria"]
[Date "2025.04.18"]
[Round "7.20"]
[White "Brito Garcia, Alfredo"]
[Black "Perez Rosales, Pedro"]
[Result "1-0"]
[Annotator "RC"]
[ECO "A50"]
[WhiteElo "2214"]
[BlackElo "1942"]
[PlyCount "109"]
[EventDate "2025.04.13"]
[EventType "swiss"]
[EventCountry "ESP"]
[SourceTitle "playchess.com"]
[Source "ChessBase"]
[SourceQuality "1"]
[TimeControl "5400+30"]

1. d4 {[%emt 0:00:56]} Nf6 {[%emt 0:00:06]} 2. Nf3 {[%emt 0:00:50]} b6 {[%emt 0:00:08]} 3. c4 {[%emt 0:02:17]} Bb7 {[%emt 0:00:06]} 4. g3 {[%emt 0:00:12]} g6 {[%emt 0:00:08]} 5. Bg2 {[%emt 0:00:16]} Bg7 {[%emt 0:00:08]} 6. O-O {[%emt 0:01:44]} O-O {[%emt 0:00:07]} 7. Nc3 {[%emt 0:02:38]} Ne4 {[%emt 0:00:08]} 8. Qb3 {[%emt 0:11:29]} Nxc3 {[%emt 0:00:16]} 9. Qxc3 {[%emt 0:07:00]} c5 {[%emt 0:00:51]} 10. Be3 {[%emt 0:01:44]} Nc6 {[%emt 0:00:08]} 11. Rfd1 {[%emt 0:02:16]} Qc7 {[%emt 0:06:38]} 12. Rac1 {[%emt 0:03:11]} d6 {[%emt 0:02:53]} 13. h4 {[%emt 0:08:25]} h5 {[%emt 0:05:00]} 14. Qd2 {[%emt 0:04:46]} cxd4 {[%emt 0:02:12]} 15. Nxd4 {[%emt 0:01:00]} Nxd4 {[%emt 0:00:10]} 16. Bxd4 {[%emt 0:00:06]} Bxd4 {[%emt 0:00:15]} 17. Qxd4 {[%emt 0:00:08]} Bxg2 {[%emt 0:00:08]} 18. Kxg2 {[%emt 0:00:06]} Rfc8 {[%emt 0:09:29]} 19. Rc3 {[%emt 0:01:58]} Qb7+ {[%emt 0:05:06]} 20. Kg1 {[%emt 0:02:48]} Qa6 {[%emt 0:02:18]} 21. a3 {[%emt 0:01:34]} Rc7 {[%emt 0:01:01]} 22. Qf4 {[%emt 0:10:32]} Rac8 {[%emt 0:00:58]} 23. Rdc1 {[%emt 0:00:51]} d5 {[%emt 0:14:05]} 24. cxd5 {[%emt 0:04:09]} Rxc3 {[%emt 0:01:27]} 25. Rxc3 {[%emt 0:00:43]} Rxc3 {[%emt 0:00:08]} 26. bxc3 {[%emt 0:00:08]} Qxa3 {[%emt 0:03:13]} 27. Qb8+ {[%emt 0:03:17]} Kg7 {[%emt 0:01:08]} 28. Qe5+ {[%emt 0:00:16]} Kg8 {[%emt 0:00:11]} 29. e4 {[%emt 0:01:24]} Qd6 {[%emt 0:03:48]} 30. Qd4 {[%emt 0:00:24]} a5 {[%emt 0:07:14]} 31. Kf1 {[%emt 0:00:10]} f6 {[%emt 0:01:54]} 32. f4 {[%emt 0:00:59]} b5 {[%emt 0:07:25]} 33. Ke1 {[%emt 0:05:04]} Qa3 {[%emt 0:01:58]} 34. e5 {[%emt 0:02:00]} Qc1+ {[%emt 0:02:30]} 35. Ke2 {[%emt 0:01:03]} Qc2+ {[%emt 0:02:52]} 36. Kf3 {[%emt 0:02:52]} fxe5 {[%emt 0:00:50]} 37. fxe5 {[%emt 0:00:25]} a4 {[%emt 0:09:47]} 38. d6 {[%emt 0:01:20]} exd6 {[%emt 0:00:47]} 39. exd6 {[%emt 0:01:31]} Qf5+ {[%emt 0:00:10]} 40. Ke3 {[%emt 0:01:15]} Qd7 {[%emt 0:00:09]} 41. Kd2 {[%emt 0:06:00]} Kf7 {[%emt 0:00:47]} 42. Qd5+ {[%emt 0:05:02]} Kf6 {[%emt 0:05:40]} 43. Kc1 {[%emt 0:01:39]} Kg7 {[%emt 0:04:44]} 44. Kb2 {[%emt 0:01:29]} Kf6 {[%emt 0:00:10]} 45. Ka3 {[%emt 0:01:57]} Kg7 {[%emt 0:00:16]} 46. Kb4 {[%emt 0:01:11]} Kf6 {[%emt 0:00:25]} 47. Ka3 {[%emt 0:01:14]} Kg7 {[%emt 0:00:07]} 48. Qe5+ {[%emt 0:00:27]} Kf7 {[%emt 0:00:09]} 49. Qd5+ {[%emt 0:00:47]} Kf6 {[%emt 0:01:02]} 50. Kb4 {[%emt 0:00:19]} Kg7 {[%emt 0:00:25]} 51. Qd4+ {[%emt 0:00:49]} Kf7 {[%emt 0:00:13]} 52. Qf4+ {[%emt 0:00:50]} Ke8 {[%emt 0:03:17]} 53. Qf6 {[%emt 0:00:32]} Qg4+ {[%emt 0:01:21]} 54. Ka5 {[%emt 0:00:20]} Kd7 {[%emt 0:00:32]} 55. Qe7+ {[%emt 0:01:37]} 1-0

[Event "17th Memorial Lezcano Montalvo 2025"]
[Site "Gran Canaria"]
[Date "2025.04.18"]
[Round "7.21"]
[White "Blanco Barros, Juan Carlos"]
[Black "Tytynnik, Artem"]
[Result "0-1"]
[Annotator "ChessBase"]
[ECO "B23"]
[WhiteElo "1941"]
[BlackElo "2209"]
[PlyCount "56"]
[EventDate "2025.04.13"]
[EventType "swiss"]
[EventCountry "ESP"]
[SourceTitle "playchess.com"]
[Source "ChessBase"]
[SourceQuality "1"]
[TimeControl "5400+30"]

1. e4 {[%emt 0:00:30]} c5 {[%emt 0:00:51]} 2. Nc3 {[%emt 0:00:57]} d6 {[%emt 0:00:51]} 3. f4 {[%emt 0:00:34]} Nf6 {[%emt 0:01:19]} 4. Nf3 {[%emt 0:01:40]} g6 {[%emt 0:01:31]} 5. Bc4 {[%emt 0:00:18]} Bg7 {[%emt 0:00:57]} 6. d3 {[%emt 0:00:22]} Nc6 {[%emt 0:01:26]} 7. O-O {[%emt 0:00:12]} O-O {[%emt 0:00:15]} 8. Qe1 {[%emt 0:00:14]} Na5 {[%emt 0:11:08]} 9. f5 {[%emt 0:11:40]} Nxc4 {[%emt 0:03:33]} 10. dxc4 {[%emt 0:01:04]} gxf5 {[%emt 0:07:02]} 11. Qh4 {[%emt 0:09:47]} fxe4 {[%emt 0:28:31]} 12. Bh6 {[%emt 0:00:57]} Bxh6 {[%emt 0:08:48]} 13. Qxh6 {[%emt 0:00:21]} exf3 {[%emt 0:00:42]} 14. Rxf3 {[%emt 0:15:14]} Kh8 {[%emt 0:01:12]} 15. Rxf6 {[%emt 0:02:32]} exf6 {[%emt 0:00:22]} 16. Nd5 {[%emt 0:07:06]} Rg8 {[%emt 0:09:49]} 17. Nxf6 {[%emt 0:00:44]} Rg7 {[%emt 0:01:56]} 18. Re1 {[%emt 0:00:11]} Bf5 {[%emt 0:09:54]} 19. h4 {[%emt 0:03:18]} Qf8 {[%emt 0:01:07]} 20. Kh1 {[%emt 0:00:36]} Bxc2 {[%emt 0:04:27]} 21. g4 {[%emt 0:04:41]} Rg8 {[%emt 0:02:56]} 22. Qf4 {[%emt 0:13:13]} Ba4 {[%emt 0:01:16]} 23. h5 {[%emt 0:03:26]} Bc6+ {[%emt 0:00:02]} 24. Kh2 {[%emt 0:00:03]} Qg7 {[%emt 0:00:15]} 25. Qf5 {[%emt 0:00:19]} Rae8 {[%emt 0:00:41]} 26. Rxe8 {[%emt 0:05:45]} Rxe8 {[%emt 0:00:06]} 27. Kh3 {[%emt 0:00:28]} Re3+ {[%emt 0:00:23]} 28. Kh4 {[%emt 0:00:22]} h6 {[%emt 0:00:49]} 0-1

[Event "17th Memorial Lezcano Montalvo 2025"]
[Site "Gran Canaria"]
[Date "2025.04.18"]
[Round "7.22"]
[White "Garcia Brion, Eduardo"]
[Black "Quintero Hernandez, Marcos Jesus"]
[Result "1-0"]
[Annotator "ChessBase"]
[ECO "C00"]
[WhiteElo "2171"]
[BlackElo "1874"]
[PlyCount "100"]
[EventDate "2025.04.13"]
[EventType "swiss"]
[EventCountry "ESP"]
[SourceTitle "playchess.com"]
[Source "ChessBase"]
[SourceQuality "1"]
[TimeControl "5400+30"]

1. e4 {[%emt 0:00:01]} e6 {[%emt 0:00:15]} 2. Qe2 {[%emt 0:00:06]} d5 {[%emt 0:00:15]} 3. exd5 {[%emt 0:00:09]} Qxd5 {[%emt 0:00:02]} 4. Nc3 {[%emt 0:00:12]} Qd8 {[%emt 0:00:01]} 5. g3 {[%emt 0:02:36]} Nf6 {[%emt 0:01:47]} 6. Bg2 {[%emt 0:00:12]} Be7 {[%emt 0:00:25]} 7. Nf3 {[%emt 0:00:04]} O-O {[%emt 0:00:06]} 8. O-O {[%emt 0:01:34]} Nbd7 {[%emt 0:03:31]} 9. d4 {[%emt 0:05:26]} Nd5 {[%emt 0:04:09]} 10. Nd1 {[%emt 0:03:46]} c5 {[%emt 0:03:32]} 11. c4 {[%emt 0:01:29]} N5f6 {[%emt 0:00:32]} 12. Ne3 {[%emt 0:02:53]} cxd4 {[%emt 0:01:01]} 13. Nxd4 {[%emt 0:00:07]} a6 {[%emt 0:02:13]} 14. b3 {[%emt 0:00:11]} Qc7 {[%emt 0:04:40]} 15. Bb2 {[%emt 0:03:13]} Re8 {[%emt 0:06:15]} 16. h4 {[%emt 0:09:16]} Nc5 {[%emt 0:08:42]} 17. Rfe1 {[%emt 0:12:27]} Bd7 {[%emt 0:09:02]} 18. Rad1 {[%emt 0:00:52]} Bc6 {[%emt 0:07:06]} 19. Nxc6 {[%emt 0:00:41]} bxc6 {[%emt 0:00:04]} 20. Qf3 {[%emt 0:04:29]} Rac8 {[%emt 0:00:57]} 21. Ng4 {[%emt 0:11:46]} Nxg4 {[%emt 0:09:39]} 22. Qxg4 {[%emt 0:00:08]} Bf8 {[%emt 0:00:12]} 23. h5 {[%emt 0:05:53]} h6 {[%emt 0:04:06]} 24. b4 {[%emt 0:04:47]} Nd7 {[%emt 0:06:17]} 25. c5 {[%emt 0:01:41]} a5 {[%emt 0:01:28]} 26. a3 {[%emt 0:00:19]} axb4 {[%emt 0:02:25]} 27. axb4 {[%emt 0:00:04]} Kh7 {[%emt 0:01:20]} 28. Be4+ {[%emt 0:00:40]} Kg8 {[%emt 0:00:15]} 29. Bb1 {[%emt 0:01:05]} Rcd8 {[%emt 0:01:13]} 30. Rd6 {[%emt 0:06:21]} Nb8 {[%emt 0:02:32]} 31. Red1 {[%emt 0:05:46]} Rxd6 {[%emt 0:02:23]} 32. cxd6 {[%emt 0:00:17]} Qc8 {[%emt 0:00:25]} 33. f4 {[%emt 0:03:23]} Nd7 {[%emt 0:01:57]} 34. Qf3 {[%emt 0:05:41]} Qb7 {[%emt 0:01:06]} 35. Bc3 {[%emt 0:01:09]} Qb6+ {[%emt 0:01:25]} 36. Kh1 {[%emt 0:00:09]} c5 {[%emt 0:00:26]} 37. Qd3 {[%emt 0:00:10]} f5 {[%emt 0:00:22]} 38. b5 {[%emt 0:00:26]} Nf6 {[%emt 0:02:16]} 39. Bxf6 {[%emt 0:00:27]} gxf6 {[%emt 0:00:02]} 40. Ba2 {[%emt 0:00:11]} Kg7 {[%emt 0:00:57]} 41. d7 {[%emt 0:00:30]} Rd8 {[%emt 0:00:06]} 42. g4 {[%emt 0:00:32]} Qb7+ {[%emt 0:00:45]} 43. Kh2 {[%emt 0:00:18]} Qc7 {[%emt 0:00:04]} 44. Kg3 {[%emt 0:00:22]} Qb6 {[%emt 0:04:16]} 45. gxf5 {[%emt 0:00:20]} Qa5 {[%emt 0:00:57]} 46. Bc4 {[%emt 0:00:23]} Be7 {[%emt 0:01:41]} 47. Kh3 {[%emt 0:00:48]} Ra8 {[%emt 0:01:45]} 48. Rg1+ {[%emt 0:01:01]} Kh8 {[%emt 0:00:19]} 49. Qg3 {[%emt 0:00:33]} Qa3 {[%emt 0:00:01]} 50. Bb3 {[%emt 0:00:07]} Bd8 {[%emt 0:00:38]} 1-0

[Event "17th Memorial Lezcano Montalvo 2025"]
[Site "Gran Canaria"]
[Date "2025.04.18"]
[Round "7.23"]
[White "Yelisieiev, Yevhenii"]
[Black "Ramirez Maillo, Juan Adonay"]
[Result "1-0"]
[Annotator "RC"]
[ECO "D26"]
[WhiteElo "2413"]
[BlackElo "1956"]
[PlyCount "77"]
[EventDate "2025.04.13"]
[EventType "swiss"]
[EventCountry "ESP"]
[SourceTitle "playchess.com"]
[Source "ChessBase"]
[SourceQuality "1"]
[TimeControl "5400+30"]

1. d4 {[%emt 0:00:03]} d5 {[%emt 0:00:08]} 2. c4 {[%emt 0:00:03]} e6 {[%emt 0:00:06]} 3. Nf3 {[%emt 0:00:04]} dxc4 {[%emt 0:00:20]} 4. e3 {[%emt 0:00:12]} Nf6 {[%emt 0:00:13]} 5. Bxc4 {[%emt 0:00:08]} a6 {[%emt 0:00:16]} 6. O-O {[%emt 0:00:28]} Be7 {[%emt 0:00:30]} 7. Nbd2 {[%emt 0:04:27]} b5 {[%emt 0:01:31]} 8. Bd3 {[%emt 0:07:00]} Nbd7 {[%emt 0:00:54]} 9. e4 {[%emt 0:05:08]} c5 {[%emt 0:01:00]} 10. e5 {[%emt 0:02:31]} Nd5 {[%emt 0:00:14]} 11. a4 {[%emt 0:02:15]} c4 {[%emt 0:09:31]} 12. Bb1 {[%emt 0:02:25]} Bb7 {[%emt 0:01:08]} 13. Ne4 {[%emt 0:01:25]} N7b6 {[%emt 0:07:58]} 14. Bg5 {[%emt 0:01:11]} f6 {[%emt 0:04:31]} 15. exf6 {[%emt 0:14:57]} gxf6 {[%emt 0:00:59]} 16. a5 {[%emt 0:02:59]} fxg5 {[%emt 0:04:37]} 17. axb6 {[%emt 0:01:29]} Qxb6 {[%emt 0:02:52]} 18. Nfxg5 {[%emt 0:00:36]} O-O-O {[%emt 0:01:33]} 19. Nf7 {[%emt 0:04:02]} Nf6 {[%emt 0:05:28]} 20. Nxd8 {[%emt 0:06:39]} Rxd8 {[%emt 0:02:12]} 21. Qe2 {[%emt 0:04:45]} Rxd4 {[%emt 0:06:13]} 22. Nxf6 {[%emt 0:00:49]} Bxf6 {[%emt 0:00:12]} 23. Ra3 {[%emt 0:04:08]} Qc6 {[%emt 0:03:32]} 24. Rg3 {[%emt 0:01:35]} Qd5 {[%emt 0:01:38]} 25. Bxh7 {[%emt 0:09:33]} Rd2 {[%emt 0:03:09]} 26. Qe1 {[%emt 0:04:25]} Bxb2 {[%emt 0:00:40]} 27. Be4 {[%emt 0:10:45]} Qxe4 {[%emt 0:11:22]} 28. Qxd2 {[%emt 0:00:14]} Be5 {[%emt 0:04:37]} 29. Re1 {[%emt 0:02:20]} Qf4 {[%emt 0:00:59]} 30. Rg8+ {[%emt 0:01:13]} Kc7 {[%emt 0:00:01]} 31. Qd8+ {[%emt 0:00:39]} Kc6 {[%emt 0:00:01]} 32. g3 {[%emt 0:00:23]} Qd4 {[%emt 0:01:18]} 33. Qe8+ {[%emt 0:00:49]} Kc7 {[%emt 0:07:07]} 34. Qe7+ {[%emt 0:01:56]} Kb6 {[%emt 0:01:38]} 35. Qxe6+ {[%emt 0:00:07]} Bd6 {[%emt 0:00:17]} 36. Rd8 {[%emt 0:02:27]} Kc5 {[%emt 0:00:59]} 37. Qe2 {[%emt 0:01:45]} Qd5 {[%emt 0:01:57]} 38. Qe3+ {[%emt 0:00:01]} Kc6 {[%emt 0:01:29]} 39. Qe6 {[%emt 0:01:28]} 1-0